bitfinex/quotes_ETHUSD_20250210
["timestamp","ask_amount","ask_price","bid_price","bid_amount"]
[1739172683289,3.79679,2633.8,2633.5,0.0102797]
[1739172683579,3.79708,2633.6,2633.5,0.0102797]
[1739172684110,3.79141187,2633.6,2633.5,0.0102797]
[1739172686271,3.79679,2633.8,2633.5,0.0102797]
[1739172686502,3.79679,2633.8,2633.7,0.7708]
[1739172687019,3.79659,2634.0,2633.7,0.7708]
[1739172687322,3.79679,2633.8,2633.7,0.7708]
[1739172688673,3.79659,2634.0,2633.7,0.7708]
[1739172689078,3.79679,2633.9,2633.7,0.7708]
[1739172689379,3.79668,2633.9,2633.7,0.7708]
[1739172689706,3.79679,2633.8,2633.7,0.7708]
[1739172690102,3.79659,2634.0,2633.7,0.7708]
[1739172690275,3.79673,2633.9,2633.7,0.7708]
[1739172690479,3.79659,2634.0,2633.7,0.7708]
[1739172690674,0.773,2634.4,2633.9,2.20174368]
[1739172690880,3.79617,2634.3,2634.2,2.20174368]
[1739172694331,3.79636,2634.1,2634.0,0.7708]
[1739172694535,3.79679,2633.8,2633.7,0.7708]
[1739172694923,3.79693,2633.7,2633.6,2.20174368]
[1739172695120,3.79679,2633.8,2633.6,2.20174368]
[1739172695324,3.79693,2633.7,2633.6,2.20174368]
[1739172697427,3.79708,2633.6,2633.5,0.0102797]
[1739172699423,8.16108,2633.6,2633.5,0.0102797]
[1739172706562,6.79708,2633.6,2633.5,0.7684797]
[1739172706858,3.79708,2633.6,2633.5,0.7684797]
[1739172707230,6.79708,2633.6,2633.5,0.7684797]
[1739172712663,3.79693,2633.7,2633.5,0.7684797]
[1739172712865,3.79672,2633.9,2633.6,2.20174368]
[1739172713070,7.59349,2633.9,2633.6,2.20174368]
[1739172713272,3.79672,2633.9,2633.6,2.20174368]
[1739172713470,3.79693,2633.8,2633.6,2.20174368]
[1739172713675,3.79693,2633.7,2633.6,2.20174368]
[1739172716497,3.7968,2633.8,2633.6,2.20174368]
[1739172716811,3.79693,2633.7,2633.6,2.20174368]
[1739172717498,3.7968,2633.8,2633.6,2.20174368]
[1739172718005,7.59367,2633.8,2633.6,2.20174368]
[1739172718300,7.59371,2633.8,2633.6,2.20174368]
[1739172718861,3.7968,2633.8,2633.6,2.20174368]
[1739172719303,7.59369,2633.8,2633.6,2.20174368]
[1739172719458,7.59371,2633.8,2633.6,2.20174368]
[1739172719661,3.7968,2633.8,2633.6,2.20174368]
[1739172719985,3.79693,2633.7,2633.6,2.20174368]
[1739172720186,7.59371,2633.8,2633.6,2.20174368]
[1739172720374,3.7968,2633.8,2633.6,2.20174368]
[1739172721091,3.7968,2633.8,2633.7,0.7756]
[1739172721590,3.79625,2634.2,2633.7,3.79684]
[1739172721794,3.79625,2634.2,2634.1,2.97734368]
[1739172722379,3.79608,2634.3,2634.1,2.97734368]
[1739172722694,3.79621,2634.2,2634.1,2.97734368]
[1739172723394,1.2817078,2634.4,2634.2,0.7756]
[1739172724099,1.2817078,2634.4,2634.3,4.57167]
[1739172724297,3.79525,2634.9,2634.3,0.7756]
[1739172724476,3.79525,2634.9,2634.2,3.79611]
[1739172724477,3.79525,2634.9,2634.8,2.20174368]
[1739172725398,3.79498,2635.1,2634.8,2.20174368]
[1739172725577,3.79518,2635.0,2634.8,2.20174368]
[1739172725773,3.79498,2635.1,2634.8,2.20174368]
[1739172726377,3.7947,2635.3,2634.8,2.20174368]
[1739172726697,3.7947,2635.3,2635.2,2.20174368]
[1739172730122,3.79449,2635.4,2635.3,0.7756]
[1739172730418,3.79434,2635.5,2635.3,0.7756]
[1739172730732,3.79449,2635.4,2635.3,0.7756]
[1739172731827,7.58879,2635.5,2635.3,0.7756]
[1739172732013,3.79434,2635.5,2635.3,0.7756]
[1739172732721,3.79426,2635.6,2635.3,0.7756]
[1739172733027,3.79426,2635.6,2635.5,2.20174368]
[1739172734675,3.79411,2635.7,2635.5,2.20174368]
[1739172734813,3.79378,2635.9,2635.5,2.20174368]
[1739172735016,3.79378,2635.9,2635.8,2.20174368]
[1739172735347,6.79378,2635.9,2635.8,2.20174368]
[1739172736457,3.79377,2635.9,2635.8,2.20174368]
[1739172736647,3.79363,2636.0,2635.8,2.20174368]
[1739172736648,3.79363,2636.0,2635.8,2.97734368]
[1739172736848,3.79341,2636.2,2635.8,2.97734368]
[1739172737052,3.79341,2636.2,2636.1,2.20174368]
[1739172739256,3.79341,2636.2,2635.8,2.20174368]
[1739172739431,3.79377,2635.9,2635.8,2.20174368]
[1739172740323,0.7995,2636.7,2636.4,3.79299]
[1739172740523,0.7995,2637.1,2636.6,5.99450368]
[1739172740748,3.79201,2637.2,2637.0,2.20174368]
[1739172740952,3.79204,2637.1,2637.0,2.20174368]
[1739172741455,3.79185,2637.3,2637.0,2.20174368]
[1739172741749,7.58404,2637.2,2637.0,2.20174368]
[1739172741948,3.79201,2637.2,2637.1,2.20174368]
[1739172742386,0.7995,2637.8,2637.1,2.20174368]
[1739172742387,3.79175,2637.3,2637.2,0.7756]
[1739172742679,3.7919,2637.2,2637.1,2.20174368]
[1739172744270,3.79233,2636.9,2636.8,2.20174368]
[1739172744803,3.79276,2636.6,2636.5,2.20174368]
[1739172749380,4.59211,2636.8,2636.5,2.20174368]
[1739172749381,3.79261,2636.8,2636.5,2.20174368]
[1739172749591,3.79264,2636.7,2636.5,2.20174368]
[1739172749960,3.79261,2636.8,2636.5,2.20174368]
[1739172750160,3.79261,2636.8,2636.6,0.7756]
[1739172750496,3.79223,2637.0,2636.6,0.7756]
[1739172750796,7.584,2637.2,2636.9,2.20174368]
[1739172751092,3.79158,2637.5,2636.9,2.20174368]
[1739172751299,3.79158,2637.5,2637.3,2.20174368]
[1739172751300,6.79171,2637.4,2637.3,2.20174368]
[1739172752197,3.79158,2637.5,2637.3,2.20174368]
[1739172753020,3.79161,2637.4,2637.3,2.20174368]
[1739172753505,3.79216,2637.1,2637.0,2.20174368]
[1739172755601,3.79185,2637.3,2637.0,2.20174368]
[1739172755782,3.79192,2637.2,2637.0,2.20174368]
[1739172756383,3.79204,2637.1,2637.0,2.20174368]
[1739172756700,7.5837,2637.3,2637.0,2.20174368]
[1739172757009,3.79191,2637.2,2637.0,2.20174368]
[1739172757218,3.79185,2637.3,2637.0,2.20174368]
[1739172757423,3.79204,2637.1,2637.0,2.20174368]
[1739172757626,3.79193,2637.2,2637.0,2.20174368]
[1739172758193,3.79204,2637.1,2637.0,2.20174368]
[1739172758389,3.79185,2637.3,2637.0,2.20174368]
[1739172758693,7.58373,2637.3,2637.0,2.20174368]
[1739172758897,3.79204,2637.1,2637.0,2.20174368]
[1739172759905,4.09154068,2640.0,2637.0,2.20174368]
[1739172759906,3.7916,2637.5,2637.0,2.20174368]
[1739172760106,3.79161,2637.4,2637.3,2.20174368]
[1739172760598,3.7916,2637.5,2637.3,2.20174368]
[1739172760794,3.79134,2637.6,2637.3,2.20174368]
[1739172761001,3.79134,2637.6,2637.5,2.20174368]
[1739172761197,3.79119,2637.7,2637.5,2.20174368]
[1739172761399,7.5825,2637.7,2637.5,2.20174368]
[1739172761799,3.79132,2637.6,2637.5,2.20174368]
[1739172762527,3.79119,2637.7,2637.5,2.20174368]
[1739172762748,7.58197,2637.9,2637.5,2.20174368]
[1739172763054,3.79058,2638.2,2637.8,2.20174368]
[1739172763418,3.79075,2638.0,2637.8,2.20174368]
[1739172763596,3.79058,2638.2,2637.8,2.20174368]
[1739172763932,3.79078,2638.0,2637.8,2.20174368]
[1739172764502,3.7907,2638.1,2637.8,2.20174368]
[1739172765234,3.79076,2638.0,2637.8,2.20174368]
[1739172765398,3.79076,2638.0,2637.9,2.20174368]
[1739172765604,3.79064,2638.1,2637.9,2.20174368]
[1739172765815,3.79057,2638.2,2637.9,2.20174368]
[1739172766136,7.58116,2638.2,2637.9,2.20174368]
[1739172766516,3.79064,2638.1,2637.9,2.20174368]
[1739172766715,3.7906,2638.1,2637.9,2.20174368]
[1739172766915,3.79075,2638.0,2637.9,2.20174368]
[1739172768346,3.79038,2638.3,2637.9,2.20174368]
[1739172768516,3.79052,2638.2,2637.9,2.20174368]
[1739172768717,0.7791,2638.6,2637.9,2.20174368]
[1739172768718,3.79075,2638.0,2637.9,2.20174368]
[1739172770042,3.79061,2638.1,2637.9,2.20174368]
[1739172770338,3.79057,2638.2,2637.9,2.20174368]
[1739172771048,3.7905,2638.2,2638.0,0.7756]
[1739172771241,3.7906,2638.1,2637.9,2.20174368]
[1739172772021,3.79046,2638.2,2637.9,2.20174368]
[1739172772237,3.79047,2638.2,2637.9,2.20174368]
[1739172772646,3.79047,2638.2,2637.9,2.19607554]
[1739172772848,3.79075,2638.0,2637.9,2.19607554]
[1739172774162,3.79047,2638.2,2637.9,2.19607554]
[1739172774463,3.0,2638.3,2637.9,2.19607554]
[1739172774658,6.79036,2638.3,2637.9,2.19607554]
[1739172775658,3.0,2638.3,2637.9,2.19607554]
[1739172775872,3.79048,2638.2,2637.9,2.19607554]
[1739172776072,7.58105,2638.2,2637.9,2.19607554]
[1739172776365,7.58103,2638.2,2637.9,2.19607554]
[1739172777061,3.79075,2638.0,2637.9,2.19607554]
[1739172777964,3.79064,2638.1,2637.9,2.19607554]
[1739172778352,3.79054,2638.2,2637.9,2.19607554]
[1739172778542,3.79064,2638.1,2637.9,2.19607554]
[1739172778732,3.79054,2638.2,2637.9,2.19607554]
[1739172778934,3.79068,2638.1,2637.9,2.19607554]
[1739172779690,0.8289,2638.5,2637.9,2.19607554]
[1739172779888,3.79047,2638.2,2637.9,2.19607554]
[1739172780689,3.79071,2638.1,2637.9,2.19607554]
[1739172780895,3.79047,2638.2,2637.9,2.19607554]
[1739172781105,3.79068,2638.1,2637.9,2.19607554]
[1739172781272,3.79047,2638.2,2637.9,2.19607554]
[1739172781475,7.58102,2638.2,2637.9,2.19607554]
[1739172781690,3.79066,2638.1,2637.9,2.19607554]
[1739172781896,7.58106,2638.2,2637.9,2.19607554]
[1739172782261,3.79047,2638.2,2637.9,2.19607554]
[1739172782591,3.79019,2638.4,2637.9,2.19607554]
[1739172782797,3.79019,2638.4,2638.2,2.20174368]
[1739172783165,3.79031,2638.3,2638.2,2.20174368]
[1739172784295,0.8289,2638.5,2638.2,2.20174368]
[1739172784484,3.78997,2638.6,2638.2,2.97734368]
[1739172784684,3.78997,2638.6,2638.5,2.20174368]
[1739172785983,3.79031,2638.3,2638.2,2.20174368]
[1739172786184,4.61921,2638.3,2638.2,2.20174368]
[1739172786388,3.79031,2638.3,2638.2,2.20174368]
[1739172787292,3.79018,2638.4,2638.2,2.20174368]
[1739172787819,3.79018,2638.4,2638.2,2.97294368]
[1739172789023,3.79005,2638.5,2638.2,2.97294368]
[1739172790417,6.78993,2638.6,2638.2,2.97294368]
[1739172790593,3.79007,2638.5,2638.2,2.97294368]
[1739172790990,3.78993,2638.6,2638.2,2.97294368]
[1739172791191,3.78993,2638.6,2638.5,2.20174368]
[1739172791920,3.78911,2639.2,2638.6,0.7712]
[1739172792120,3.78917,2639.1,2639.0,2.20174368]
[1739172792419,3.7896,2638.8,2638.7,2.20174368]
[1739172793021,3.78946,2638.9,2638.7,2.20174368]
[1739172793217,3.78933,2639.0,2638.7,2.20174368]
[1739172793399,7.57874,2639.0,2638.7,2.20174368]
[1739172794317,3.78948,2638.9,2638.7,2.20174368]
[1739172794487,3.78933,2639.0,2638.7,2.20174368]
[1739172794889,5.32,2639.8,2639.7,3.7883]
[1739172795122,1.75459523,2640.1,2639.7,5.99004368]
[1739172795296,0.7568,2640.1,2640.0,2.20174368]
[1739172795493,3.78768,2640.2,2640.0,2.20174368]
[1739172795813,3.78773,2640.1,2640.0,2.20174368]
[1739172796747,6.78773,2640.1,2640.0,2.20174368]
[1739172797687,3.0,2640.1,2640.0,2.20174368]
[1739172798024,6.78773,2640.1,2640.0,2.20174368]
[1739172800624,3.0,2640.1,2640.0,2.20174368]
[1739172800800,3.78771,2640.2,2640.0,2.20174368]
[1739172801006,7.57544,2640.2,2640.0,2.20174368]
[1739172801202,3.78773,2640.1,2640.0,2.20174368]
[1739172801423,3.78771,2640.2,2640.0,2.20174368]
[1739172801623,3.78742,2640.4,2640.0,2.97294368]
[1739172801841,3.0,2640.2,2640.0,0.7712]
[1739172802027,3.78742,2640.4,2640.0,0.7712]
[1739172802231,3.78748,2640.3,2640.0,0.7712]
[1739172802698,3.7568,2640.6,2640.0,0.7712]
[1739172802699,3.78773,2640.1,2640.0,0.7712]
[1739172802903,3.78773,2640.1,2640.0,2.20174368]
[1739172803724,3.78756,2640.3,2640.0,2.20174368]
[1739172803725,3.78762,2640.2,2640.0,2.20174368]
[1739172803917,3.0,2640.4,2640.0,2.20174368]
[1739172804125,6.7873,2640.4,2640.3,2.20174368]
[1739172805416,0.55,2641.0,2640.3,2.20174368]
[1739172805417,3.78691,2640.7,2640.3,2.20174368]
[1739172805622,3.78691,2640.7,2640.6,2.20174368]
[1739172806322,6.78691,2640.7,2640.6,2.20174368]
[1739172807043,3.7873,2640.4,2640.3,2.20174368]
[1739172811931,4.5441,2640.4,2640.3,2.20174368]
[1739172813815,4.5441,2640.4,2639.7,8.22294368]
[1739172813816,3.78816,2639.8,2639.7,8.22294368]
[1739172814015,3.78816,2639.8,2639.7,2.20174368]
[1739172815736,3.78816,2639.8,2639.7,0.30759368]
[1739172815737,6.78816,2639.8,2639.7,0.30759368]
[1739172816047,3.7889,2639.3,2639.1,2.97294368]
[1739172820070,7.57736,2639.5,2639.1,2.97294368]
[1739172820277,7.57736,2639.5,2639.4,2.20174368]
[1739172821576,3.7884,2639.7,2639.4,2.20174368]
[1739172821758,3.78859,2639.5,2639.4,2.20174368]
[1739172826395,0.8057,2639.5,2638.8,2.96944368]
[1739172826690,3.78945,2638.9,2638.8,2.96944368]
[1739172826863,0.8057,2639.5,2638.8,2.96944368]
[1739172827066,3.78864,2639.5,2639.4,2.20174368]
[1739172827269,3.78835,2639.7,2639.4,2.20174368]
[1739172827491,3.78855,2639.6,2639.4,2.20174368]
[1739172828885,3.78859,2639.5,2639.4,2.20174368]
[1739172829356,3.78835,2639.7,2639.4,2.20174368]
[1739172829562,3.78849,2639.6,2639.4,2.20174368]
[1739172830291,3.78859,2639.5,2639.4,2.20174368]
[1739172831082,3.78835,2639.7,2639.4,2.20174368]
[1739172831286,3.78845,2639.6,2639.4,2.20174368]
[1739172832697,3.78859,2639.5,2639.4,2.20174368]
[1739172832893,3.78846,2639.6,2639.4,2.20174368]
[1739172833100,3.78835,2639.7,2639.4,2.20174368]
[1739172833297,3.78779,2640.1,2639.5,0.7756]
[1739172833298,4.59011,2640.1,2639.5,0.7756]
[1739172833502,3.78781,2640.1,2639.7,2.20174368]
[1739172833698,3.78781,2640.1,2640.0,2.20174368]
[1739172834073,6.78781,2640.1,2640.0,2.20174368]
[1739172835400,0.8023,2640.0,2639.7,2.20174368]
[1739172835604,3.78805,2639.9,2639.7,2.20174368]
[1739172836096,3.7879,2640.0,2639.7,2.20174368]
[1739172836303,7.5759,2640.0,2639.7,2.20174368]
[1739172836673,7.57588,2640.0,2639.7,2.20174368]
[1739172837408,3.7879,2640.0,2639.7,2.20174368]
[1739172837603,3.78775,2640.1,2639.7,2.20174368]
[1739172837804,3.78766,2640.2,2640.0,2.20174368]
[1739172838006,3.78773,2640.1,2640.0,2.20174368]
[1739172839508,3.78766,2640.2,2640.0,2.20174368]
[1739172840478,7.57538,2640.2,2640.0,2.20174368]
[1739172840677,3.78773,2640.1,2640.0,2.20174368]
[1739172840881,3.78766,2640.2,2640.0,2.20174368]
[1739172841104,3.78773,2640.1,2640.0,2.20174368]
[1739172844202,3.78816,2639.8,2639.7,2.20174368]
[1739172844407,3.78865,2639.5,2639.4,2.20174368]
[1739172845116,3.78902,2639.2,2639.1,2.20174368]
[1739172845307,3.78945,2638.9,2638.8,2.20174368]
[1739172850320,3.78925,2639.1,2638.8,2.20174368]
[1739172851554,3.78913,2639.2,2638.8,2.20174368]
[1739172851741,3.78913,2639.2,2639.1,2.20174368]
[1739172852141,0.7858,2639.5,2639.1,2.20174368]
[1739172852142,3.78863,2639.5,2639.1,2.20174368]
[1739172852342,3.78863,2639.5,2639.4,2.20174368]
[1739172852650,6.78863,2639.5,2639.4,2.20174368]
[1739172856953,3.0,2639.5,2639.4,2.20174368]
[1739172857251,6.78859,2639.5,2639.4,2.20174368]
[1739172859765,3.78859,2639.5,2639.4,2.20174368]
[1739172863433,4.59112,2639.2,2639.1,2.20174368]
[1739172864086,3.78956,2638.9,2638.8,2.20174368]
[1739172871525,3.78988,2638.6,2638.5,2.20174368]
[1739172871827,3.79016,2638.5,2638.2,2.20174368]
[1739172872003,4.59226,2638.5,2638.2,2.20174368]
[1739172872714,3.79016,2638.5,2638.2,2.20174368]
[1739172873990,3.7896,2638.8,2638.3,0.7657]
[1739172874321,3.78974,2638.7,2638.6,2.20174368]
[1739172874514,3.7896,2638.8,2638.6,2.20174368]
[1739172875122,3.78974,2638.7,2638.6,2.20174368]
[1739172875320,3.7896,2638.8,2638.6,2.20174368]
[1739172876523,3.78934,2639.0,2638.6,2.20174368]
[1739172876688,3.78934,2639.0,2638.9,2.20174368]
[1739172884016,3.78931,2639.0,2638.9,2.20174368]
[1739172884649,3.78917,2639.1,2638.9,2.20174368]
[1739172884815,3.78931,2639.0,2638.9,2.20174368]
[1739172887840,3.78974,2638.7,2638.6,2.20174368]
[1739172888258,3.7896,2638.8,2638.6,2.20174368]
[1739172888462,3.78974,2638.7,2638.6,2.20174368]
[1739172901330,3.7896,2638.8,2638.6,2.20174368]
[1739172901539,3.78974,2638.7,2638.6,2.20174368]
[1739172902201,3.79009,2638.5,2638.3,2.20174368]
[1739172905418,3.79017,2638.4,2638.3,2.20174368]
[1739172906023,4.58797,2638.4,2638.3,2.20174368]
[1739172906182,3.79017,2638.4,2638.3,2.20174368]
[1739172908248,3.79009,2638.5,2638.3,2.20174368]
[1739172908405,4.58756,2638.7,2638.3,2.97734368]
[1739172908406,7.57961,2638.7,2638.3,2.97734368]
[1739172908614,3.78976,2638.7,2638.3,2.97734368]
[1739172909162,3.7896,2638.8,2638.6,2.20174368]
[1739172909338,3.78974,2638.7,2638.6,2.20174368]
[1739172910211,3.7896,2638.8,2638.6,2.20174368]
[1739172910406,3.78974,2638.7,2638.6,2.20174368]
[1739172912901,3.78974,2638.7,2638.3,2.20174368]
[1739172913058,0.7577,2638.9,2638.3,2.20174368]
[1739172913059,3.79017,2638.4,2638.3,2.20174368]
[1739172913243,3.79004,2638.5,2638.3,2.20174368]
[1739172913599,3.78978,2638.7,2638.4,0.7756]
[1739172913743,3.78978,2638.7,2638.6,2.20174368]
[1739172915942,3.79017,2638.4,2638.3,2.20174368]
[1739172920950,4.54787,2638.4,2638.3,2.20174368]
[1739172921798,3.79017,2638.4,2638.3,2.20174368]
[1739172923465,4.61537,2638.4,2638.3,2.20174368]
[1739172923668,3.7906,2638.1,2638.0,2.20174368]
[1739172926201,3.79047,2638.2,2638.0,2.20174368]
[1739172926379,3.79047,2638.2,2638.1,0.7694]
[1739172927297,3.79032,2638.3,2638.1,0.7694]
[1739172928415,5.32,2638.6,2638.1,0.7694]
[1739172928572,9.10993,2638.6,2638.4,2.20174368]
[1739172928904,5.32,2638.6,2638.4,2.20174368]
[1739172929251,3.79003,2638.5,2638.4,2.20174368]
[1739172930679,3.78982,2638.7,2638.4,2.20174368]
[1739172930889,3.78963,2638.8,2638.5,0.7694]
[1739172931205,3.78963,2638.8,2638.7,2.20174368]
[1739172932307,3.78963,2638.8,2638.7,2.3030411]
[1739172932902,6.78951,2638.9,2638.7,2.3030411]
[1739172933837,3.78933,2639.0,2638.7,2.3030411]
[1739172934015,7.57878,2639.0,2638.7,2.3030411]
[1739172934313,3.78947,2638.9,2638.7,2.3030411]
[1739172938283,7.57877,2639.0,2638.7,2.3030411]
[1739172938503,3.78917,2639.1,2638.7,2.3030411]
[1739172938674,3.78917,2639.1,2639.0,2.20174368]
[1739172938871,3.78917,2639.1,2639.0,2.29997164]
[1739172940115,7.57827,2639.2,2639.0,2.29997164]
[1739172940320,3.78911,2639.2,2639.0,2.29997164]
[1739172940615,7.57823,2639.2,2639.0,2.29997164]
[1739172940915,3.78911,2639.2,2639.0,2.29997164]
[1739172941071,3.78917,2639.1,2639.0,2.29997164]
[1739172942784,3.78911,2639.2,2639.0,2.29997164]
[1739172943617,3.78917,2639.1,2639.0,2.29997164]
[1739172947500,3.78911,2639.2,2639.0,2.29997164]
[1739172947818,7.57825,2639.2,2639.0,2.29997164]
[1739172947981,3.78911,2639.2,2639.0,2.29997164]
[1739172948181,7.57825,2639.2,2639.0,2.29997164]
[1739172949229,3.78917,2639.1,2639.0,2.29997164]
[1739172951331,4.59067,2639.1,2639.0,2.29997164]
[1739172951631,4.59067,2639.1,2639.0,0.09822796]
[1739172952014,3.7896,2638.8,2638.7,2.97734368]
[1739172956935,3.7896,2638.8,2638.7,2.20174368]
[1739172959538,3.78856,2639.6,2638.9,3.78943]
[1739172959738,3.78825,2639.8,2639.5,2.20174368]
[1739172960037,3.78843,2639.7,2639.6,0.09821979]
[1739172961020,3.78845,2639.6,2639.5,2.20174368]
[1739172963139,3.78888,2639.3,2639.2,2.20174368]
[1739172963636,0.7912,2639.3,2638.9,2.20174368]
[1739172963836,3.78931,2639.0,2638.9,2.20174368]
[1739172964245,3.78917,2639.1,2638.9,2.20174368]
[1739172964435,3.78931,2639.0,2638.9,2.20174368]
[1739172965111,3.78917,2639.1,2638.9,2.20174368]
[1739172965310,7.57843,2639.1,2638.9,2.20174368]
[1739172965643,3.78917,2639.1,2638.9,2.20174368]
[1739172966145,3.78931,2639.0,2638.9,2.20174368]
[1739172966308,4.58051,2639.0,2638.9,2.20174368]
[1739172967340,3.79001,2638.6,2638.3,0.7519]
[1739172967681,3.79001,2638.6,2638.5,2.20174368]
[1739172968230,3.79001,2638.6,2638.5,2.29278857]
[1739172968632,4.54421,2638.6,2638.5,2.29278857]
[1739172970647,3.78974,2638.7,2638.5,2.29278857]
[1739172971150,7.57962,2638.7,2638.5,2.29278857]
[1739172971620,3.78988,2638.6,2638.5,2.29278857]
[1739172972024,7.5796,2638.7,2638.5,2.29278857]
[1739172972352,3.78988,2638.6,2638.5,2.29278857]
[1739172972552,4.54349,2639.1,2638.5,6.83466857]
[1739172972851,3.78917,2639.1,2639.0,2.20174368]
[1739172973147,3.78917,2639.1,2639.0,2.29375331]
[1739172976021,5.14977,2639.1,2639.0,0.09200963]
[1739172976578,3.7896,2638.8,2638.7,2.20174368]
[1739172976732,3.7896,2638.8,2638.7,2.29354069]
[1739172977345,4.6002,2638.8,2638.7,2.20174368]
[1739172980681,3.78946,2638.9,2638.7,2.29354069]
[1739172980682,7.57902,2638.9,2638.7,2.29354069]
[1739172980957,0.8106,2639.1,2638.7,2.29354069]
[1739172980958,6.78939,2639.0,2638.7,2.29354069]
[1739172981129,6.78931,2639.0,2638.9,2.20174368]
[1739172981549,6.78931,2639.0,2638.9,2.29363881]
[1739172983555,3.78925,2639.1,2638.9,2.29363881]
[1739172983742,4.59949,2639.3,2638.9,2.29363881]
[1739172983743,3.78911,2639.2,2638.9,2.29363881]
[1739172983946,3.78889,2639.3,2639.0,0.7756]
[1739172984151,6.78889,2639.3,2639.2,2.20174368]
[1739172984663,3.78889,2639.3,2639.2,2.29334444]
[1739172985027,3.78889,2639.3,2639.2,2.20174368]
[1739172985338,3.78889,2639.3,2639.2,2.29334444]
[1739172985756,3.78889,2639.3,2639.2,2.20174368]
[1739172985961,3.78889,2639.3,2639.2,2.29334444]
[1739172986462,3.78889,2639.3,2639.2,2.20174368]
[1739172987643,3.78876,2639.4,2639.2,2.20174368]
[1739172987834,7.5776,2639.4,2639.2,2.29334444]
[1739172988034,3.78888,2639.3,2639.2,2.29334444]
[1739172992450,3.78876,2639.4,2639.2,2.29334444]
[1739172993374,3.78888,2639.3,2639.2,2.29334444]
[1739172994474,3.78876,2639.4,2639.2,2.29334444]
[1739172994770,7.57762,2639.4,2639.2,2.29334444]
[1739172995072,0.7934,2639.7,2639.2,2.29334444]
[1739172995238,3.78845,2639.6,2639.5,2.20174368]
[1739172995436,7.57588,2640.0,2639.5,2.29287023]
[1739172995672,3.78788,2640.0,2639.9,2.20174368]
[1739172995839,1.47903163,2640.1,2639.9,2.20174368]
[1739172996173,5.26676163,2640.1,2640.0,0.09084861]
[1739172996741,1.47903163,2640.1,2640.0,0.09084861]
[1739172997075,5.26676163,2640.1,2640.0,0.09084861]
[1739172997374,1.47903163,2640.1,2640.0,0.09084861]
[1739172997718,5.26676163,2640.1,2640.0,0.09084861]
[1739172998155,1.47903163,2640.1,2640.0,0.09084861]
[1739172999151,5.26676163,2640.1,2640.0,0.86644861]
[1739172999350,5.26676163,2640.1,2640.0,0.09084861]
[1739173000247,1.47903163,2640.1,2640.0,0.09084861]
[1739173001047,1.47903163,2640.1,2640.0,3.87871861]
[1739173001237,1.47903163,2640.1,2640.0,0.09084861]
[1739173005382,5.26676163,2640.1,2640.0,0.09084861]
[1739173006475,1.47903163,2640.1,2640.0,0.09084861]
[1739173006979,5.26676163,2640.1,2640.0,0.09084861]
[1739173010786,6.09226163,2640.1,2640.0,0.09084861]
[1739173011090,3.78787,2640.0,2639.9,2.20174368]
[1739173014059,3.7883,2639.7,2639.6,2.20174368]
[1739173014284,4.5523,2639.7,2639.6,0.08957386]
[1739173014658,3.78873,2639.4,2639.3,2.20174368]
[1739173014892,3.78873,2639.4,2639.3,2.29131754]
[1739173015982,3.7886,2639.5,2639.3,2.29131754]
[1739173016188,3.78873,2639.4,2639.3,2.29131754]
[1739173016360,3.7886,2639.5,2639.3,2.29131754]
[1739173016565,3.78873,2639.4,2639.3,2.29131754]
[1739173019803,3.78873,2639.4,2639.3,2.20174368]
[1739173021483,3.78873,2639.4,2639.3,2.29192215]
[1739173021684,3.7886,2639.5,2639.3,2.20174368]
[1739173021906,7.57733,2639.5,2639.3,2.29192215]
[1739173022213,3.78873,2639.4,2639.3,2.29192215]
[1739173027008,0.764,2639.7,2639.3,3.06752215]
[1739173027009,3.78839,2639.7,2639.3,3.06752215]
[1739173027304,3.78819,2639.8,2639.6,2.20174368]
[1739173027617,3.78819,2639.8,2639.7,0.09043178]
[1739173028540,9.1079,2640.0,2639.7,0.09043178]
[1739173028714,3.78787,2640.0,2639.9,2.20174368]
[1739173029212,3.78787,2640.0,2639.9,2.28971916]
[1739173029445,3.78787,2640.0,2639.9,2.20174368]
[1739173030931,3.78872,2639.5,2639.3,2.20174368]
[1739173031116,3.78873,2639.4,2639.3,2.20174368]
[1739173031529,3.78859,2639.5,2639.3,2.20174368]
[1739173031929,3.78873,2639.4,2639.3,2.20174368]
[1739173034542,3.78859,2639.5,2639.3,2.20174368]
[1739173034736,3.78848,2639.6,2639.3,2.28957208]
[1739173034935,3.78848,2639.6,2639.5,2.20174368]
[1739173035528,3.78848,2639.6,2639.5,2.28957208]
[1739173036154,3.78845,2639.6,2639.5,2.28957208]
[1739173036319,3.78839,2639.7,2639.5,2.28957208]
[1739173036675,3.78845,2639.6,2639.5,2.28957208]
[1739173039423,3.78839,2639.7,2639.5,2.28957208]
[1739173039977,3.78845,2639.6,2639.5,2.28957208]
[1739173042354,5.32,2640.0,2639.5,6.85366208]
[1739173042560,3.78787,2640.0,2639.9,2.20174368]
[1739173042854,3.78787,2640.0,2639.9,2.28949855]
[1739173042855,6.78787,2640.0,2639.9,2.28949855]
[1739173043419,6.78787,2640.0,2639.9,2.20174368]
[1739173045133,3.78777,2640.1,2639.9,2.20174368]
[1739173045351,7.57561,2640.1,2639.9,2.97734368]
[1739173045559,3.78777,2640.1,2640.0,0.08775487]
[1739173049578,3.78738,2640.4,2640.0,0.08775487]
[1739173049765,3.78738,2640.4,2640.3,2.20174368]
[1739173053245,3.78738,2640.4,2640.3,2.28888578]
[1739173055081,4.54218,2640.4,2640.3,2.20174368]
[1739173055289,3.78779,2640.1,2640.0,2.20174368]
[1739173055490,3.78779,2640.1,2640.0,2.28888578]
[1739173059086,3.78752,2640.3,2640.0,2.28888578]
[1739173059687,3.78683,2640.8,2640.4,0.7756]
[1739173059850,3.78673,2640.8,2640.7,2.20174368]
[1739173060055,3.78673,2640.8,2640.7,2.28888578]
[1739173060882,3.78645,2641.0,2640.7,2.28888578]
[1739173061089,3.78668,2640.9,2640.7,2.20174368]
[1739173061285,3.78645,2641.0,2640.7,2.20174368]
[1739173061484,3.78661,2640.9,2640.7,2.20174368]
[1739173062097,3.78673,2640.8,2640.7,2.20174368]
[1739173062260,3.78645,2641.0,2640.7,2.28888578]
[1739173062571,3.78645,2641.0,2640.7,2.20174368]
[1739173063594,6.78632,2641.1,2640.7,2.20174368]
[1739173063798,6.78632,2641.1,2641.0,2.20174368]